bitfinex/quotes_ETHUSD_20240618
["timestamp","ask_amount","ask_price","bid_price","bid_amount"]
[1718730259658,3.0,3432.6,3431.7,2.91392]
[1718730259817,0.03000008,3432.5,3431.7,2.91392]
[1718730260024,0.03000008,3432.5,3431.8,2.91388]
[1718730260951,0.91117804,3432.8,3431.9,0.55]
[1718730261118,0.03000008,3432.9,3431.9,3.281188]
[1718730261325,2.94299008,3432.9,3432.0,2.91366]
[1718730261555,0.03000008,3432.9,3432.1,2.91364]
[1718730262265,2.94300008,3432.9,3432.1,3.79535]
[1718730263046,0.03000008,3432.9,3432.1,3.79535]
[1718730263243,2.91307,3432.8,3432.1,0.88171]
[1718730263460,2.91307,3432.8,3432.0,2.91375]
[1718730263461,0.03000008,3432.7,3432.0,2.91375]
[1718730263978,2.94317008,3432.7,3431.5,2.91412]
[1718730264140,2.91358,3432.2,3431.4,2.91424]
[1718730264344,0.03000008,3432.1,3430.9,5.40445]
[1718730264659,0.03000008,3432.1,3431.0,3.0]
[1718730264822,3.17103,3432.5,3431.6,2.91407]
[1718730264823,2.91343,3432.4,3431.6,2.91407]
[1718730265028,0.03000008,3432.3,3431.4,2.91425]
[1718730265346,2.91369,3432.1,3431.3,2.91433]
[1718730265529,2.91359,3432.2,3431.3,2.91433]
[1718730265745,0.03000008,3432.1,3431.3,3.797206]
[1718730265954,2.91351,3432.3,3431.4,2.91425]
[1718730266141,2.94360008,3432.2,3431.3,3.797216]
[1718730266372,2.91375,3432.1,3430.9,2.4898]
[1718730266536,0.03000008,3432.0,3431.2,2.91442]
[1718730266849,2.94376008,3432.0,3431.1,2.91449]
[1718730267024,0.03000008,3432.0,3431.2,0.831889]
[1718730267222,2.91407,3431.7,3430.8,3.447592]
[1718730267536,0.03000008,3431.6,3430.8,0.532822]
[1718730267738,2.94410008,3431.6,3430.9,0.3447662]
[1718730267939,2.91419,3431.5,3430.6,2.91493]
[1718730268293,2.91435,3431.3,3430.7,1.131529]
[1718730268484,0.03000008,3431.2,3430.3,2.91517]
[1718730268756,0.03000008,3431.2,3430.4,2.91504]
[1718730268967,6.17,3431.9,3431.6,2.91401]
[1718730269260,9.08326,3432.6,3431.7,2.91395]
[1718730269477,2.91326,3432.6,3431.8,0.55]
[1718730269623,2.94333008,3432.5,3431.5,2.9141]
[1718730269830,2.94333008,3432.5,3431.6,0.55]
[1718730270077,2.94333008,3432.5,3431.7,0.05818915]
[1718730270078,0.03000008,3432.5,3431.7,0.05818915]
[1718730270225,0.2577,3433.0,3431.9,2.91381]
[1718730270431,0.03000008,3432.9,3432.1,2.91365]
[1718730270629,0.03000008,3432.9,3432.1,3.55721448]
[1718730271141,0.03000008,3432.9,3432.2,0.05826578]
[1718730271383,6.17,3433.2,3432.5,2.91332]
[1718730271551,3.03000008,3433.1,3432.5,2.91332]
[1718730271887,0.2577,3433.5,3432.6,2.91324]
[1718730272172,0.03000008,3433.4,3432.6,2.91324]
[1718730272530,2.94256008,3433.4,3432.2,3.32421845]
[1718730272751,2.94256008,3433.4,3432.3,0.55]
[1718730272924,2.91271,3433.3,3432.4,2.91339]
[1718730273134,0.03000008,3433.2,3432.4,2.91339]
[1718730273329,3.0,3433.6,3432.6,2.91323]
[1718730273330,5.9124,3433.6,3432.6,2.91323]
[1718730273562,5.94248008,3433.5,3432.6,2.91322]
[1718730273727,2.94248008,3433.5,3432.6,2.91322]
[1718730273933,3.0,3433.4,3432.6,2.91322]
[1718730274127,0.03000008,3433.3,3432.6,2.91322]
[1718730274732,0.03000008,3433.3,3432.9,2.91295]
[1718730275065,0.03000008,3433.7,3433.1,2.9128]
[1718730275379,0.03000008,3433.7,3433.0,3.26244011]
[1718730275380,6.17,3433.8,3433.2,2.91271]
[1718730275573,0.03000008,3433.7,3433.0,2.91289]
[1718730276285,0.03000008,3433.7,3432.3,3.328]
[1718730276286,2.94231008,3433.7,3432.5,2.91331]
[1718730276442,2.94231008,3433.7,3432.6,0.55]
[1718730276628,0.03000008,3433.7,3432.8,2.91305]
[1718730276833,2.91243,3433.6,3432.8,0.93477541]
[1718730277028,2.91243,3433.6,3432.6,3.46317]
[1718730277029,0.03000008,3433.5,3432.6,3.46317]
[1718730277277,6.82299804,3434.3,3432.7,2.9131]
[1718730277447,6.82299804,3434.3,3432.8,3.46306]
[1718730277448,2.91231,3433.7,3432.8,3.46306]
[1718730277658,0.03000008,3433.6,3432.9,2.91297]
[1718730277850,2.91216,3433.9,3433.0,2.91288]
[1718730278052,2.94224008,3433.8,3432.9,2.91297]
[1718730278461,0.03000008,3433.8,3433.0,2.91288]
[1718730278960,2.91232,3433.7,3432.8,3.46306]
[1718730279164,0.03000008,3433.6,3432.8,3.46306]
[1718730279334,0.03000008,3433.6,3432.8,0.55]
[1718730279531,0.03000008,3433.6,3432.7,0.346317]
[1718730279532,2.91248,3433.5,3432.4,2.91334]
[1718730279735,2.9122,3433.9,3432.5,0.537954]
[1718730280040,3.03000008,3433.8,3433.2,2.91266]
[1718730280245,3.03000008,3433.8,3432.9,2.9129]
[1718730280246,0.03000008,3433.8,3432.9,2.9129]
[1718730280445,0.03000008,3434.1,3432.9,0.291299]
[1718730280649,2.94197008,3434.1,3432.9,0.291299]
[1718730280868,3.0,3434.0,3433.2,2.91272]
[1718730281184,0.03000008,3433.9,3433.1,2.9128]
[1718730281470,0.03000008,3433.9,3433.2,2.91266]
[1718730281853,0.03000008,3433.9,3433.3,2.91263]
[1718730282254,0.03000008,3434.0,3433.3,2.91263]
[1718730282556,0.03000008,3434.0,3433.4,2.91255]
[1718730283067,6.17,3434.4,3433.5,2.91247]
[1718730283273,6.17,3434.4,3433.7,2.91229]
[1718730283274,0.03000008,3434.3,3433.7,2.91229]
[1718730283471,3.03000008,3434.3,3433.6,2.91237]
[1718730283631,3.03000008,3434.3,3433.3,5.82524]
[1718730283632,3.03000008,3434.3,3433.3,2.91262]
[1718730283840,3.03000008,3434.3,3433.5,2.91247]
[1718730284759,5.94180008,3434.3,3433.4,2.91255]
[1718730284955,2.91189,3434.2,3433.4,2.9707935]
[1718730285144,0.03000008,3434.1,3433.4,2.9707935]
[1718730285346,3.0,3434.3,3433.4,2.9707235]
[1718730285540,3.0,3434.3,3433.7,2.91224]
[1718730285940,3.0,3434.3,3433.6,2.91238]
[1718730286167,3.0,3434.3,3433.6,3.58625364]
[1718730286543,3.0,3434.3,3433.8,2.91221]
[1718730286751,3.0,3434.3,3433.7,2.91229]
[1718730287271,3.0,3434.3,3433.6,3.58624364]
[1718730287479,3.0,3434.3,3433.6,2.91237]
[1718730288067,2.94193008,3434.2,3432.9,0.291299]
[1718730288244,2.91213,3434.0,3432.9,2.91297]
[1718730288459,2.91182,3434.3,3433.4,2.91256]
[1718730288659,0.03000008,3434.2,3433.3,2.91263]
[1718730288861,2.94190008,3434.2,3433.4,0.02380131]
[1718730289091,2.94190008,3434.2,3433.3,2.91263]
[1718730289396,2.94190008,3434.2,3433.2,2.91273]
[1718730289397,2.91199,3434.1,3433.2,2.91273]
[1718730289693,2.91172,3434.4,3433.3,0.291263]
[1718730289855,2.94172008,3434.4,3433.4,0.55]
[1718730290049,2.91204,3434.1,3432.6,2.4782]
[1718730290279,3.0,3434.3,3432.7,1.45612]
[1718730290280,2.91231,3433.8,3432.7,1.45612]
[1718730290488,0.03000008,3433.7,3432.8,2.91305]
[1718730290781,0.03000008,3433.7,3432.8,3.889119]
[1718730290990,0.03000008,3433.7,3432.7,1.45612]
[1718730290991,2.91256,3433.4,3432.7,1.45612]
[1718730291281,2.91241,3433.6,3432.7,2.91314]
[1718730291476,0.03000008,3433.5,3432.7,2.91314]
[1718730292359,0.03000008,3433.5,3432.4,13.24339]
[1718730292360,2.91272,3433.3,3432.4,13.24339]
[1718730292686,0.03000008,3433.2,3432.4,5.91339]
[1718730292852,0.03000008,3433.2,3432.5,1.090788]
[1718730294351,2.91299,3432.9,3431.5,2.91413]
[1718730294553,2.91289,3433.1,3431.6,5.32709]
[1718730294554,2.94307008,3432.8,3431.6,5.32709]
[1718730294760,2.94317008,3432.7,3431.7,2.91392]
[1718730294960,2.94318008,3432.7,3431.7,2.914]
[1718730295170,2.94318008,3432.7,3431.8,1.0613503]
[1718730295364,2.94318008,3432.7,3431.8,3.9752603]
[1718730295581,2.91325,3432.6,3431.8,3.9752603]
[1718730295991,2.91317,3432.7,3431.9,0.55]
[1718730296197,2.91297,3433.0,3432.0,0.74392603]
[1718730296427,2.91266,3433.3,3432.2,2.91358]
[1718730296714,0.03000008,3433.2,3432.4,2.91339]
[1718730296999,2.91261,3433.4,3432.5,2.97156056]
[1718730297336,5.94265008,3433.3,3432.5,0.05826056]
[1718730297475,2.94265008,3433.3,3432.5,0.68334868]
[1718730298077,3.91117804,3433.7,3432.7,2.91314]
[1718730298371,3.91117804,3433.7,3432.8,4.10644095]
[1718730298372,2.91232,3433.7,3432.8,4.10644095]
[1718730298572,2.94241008,3433.6,3432.8,0.60825208]
[1718730298825,2.91248,3433.5,3432.8,0.60825208]
[1718730299314,2.91235,3433.7,3432.8,3.52130208]
[1718730299315,2.91231,3433.7,3432.8,3.52130208]
[1718730299515,2.91231,3433.7,3432.9,0.57763221]
[1718730299812,0.03000008,3433.6,3432.9,0.57763221]
[1718730300017,2.91265,3433.3,3432.6,2.2549]
[1718730300169,2.94239008,3433.6,3432.5,0.62508812]
[1718730300170,2.91256,3433.4,3432.5,0.62508812]
[1718730300371,2.9124,3433.6,3431.3,2.91434]
[1718730300372,2.91318,3432.7,3431.8,2.9139]
[1718730300611,2.91318,3432.7,3431.9,0.823618]
[1718730300917,2.91341,3432.4,3431.9,0.823618]
[1718730301073,2.91341,3432.4,3431.2,5.22952]
[1718730301280,3.82431804,3432.8,3431.9,2.91376]
[1718730301572,3.82431804,3432.8,3431.5,2.91416]
[1718730301573,2.91333,3432.5,3431.5,2.91416]
[1718730301881,2.91362,3432.2,3431.6,0.9565662]
[1718730302091,2.91366,3432.1,3431.4,3.0]
[1718730302307,2.91366,3432.1,3431.5,1.1826372]
[1718730302493,2.91359,3432.2,3431.5,1.1826372]
[1718730302892,2.91333,3432.5,3431.5,1.1826372]
[1718730303091,2.91358,3432.2,3431.5,1.1826372]
[1718730303476,0.91117804,3432.5,3431.5,1.1826372]
[1718730303813,2.91381,3432.0,3431.3,3.822952]
[1718730304101,2.91383,3431.9,3431.3,3.822952]
[1718730304492,2.91377,3432.0,3431.3,3.822952]
[1718730304806,0.91117804,3432.5,3430.7,5.6888]
[1718730304807,2.91418,3431.5,3430.7,2.2711]
[1718730305007,0.03000008,3431.4,3430.7,2.2711]
[1718730305306,2.9141,3431.6,3430.7,2.2711]
[1718730305488,2.91429,3431.4,3430.8,0.810099]
[1718730305687,2.91429,3431.4,3430.7,2.2711]
[1718730306476,2.91419,3431.5,3430.7,2.2711]
[1718730306697,2.91429,3431.4,3430.8,0.52711]
[1718730307007,2.91414,3431.6,3430.7,2.2711]
[1718730307313,2.91445,3431.2,3430.7,2.2711]
[1718730307498,2.91445,3431.2,3430.8,0.22711]
[1718730307882,2.91435,3431.3,3430.8,0.22711]
[1718730308404,2.94450008,3431.2,3430.2,2.2655]
[1718730308607,2.91466,3431.0,3430.3,0.55]
[1718730308812,2.91466,3431.0,3430.4,0.573084]
[1718730309579,2.91443,3431.2,3430.4,0.573084]
[1718730309580,2.94468008,3430.9,3430.4,0.573084]
[1718730309784,2.94468008,3430.9,3429.9,2.91551]
[1718730310287,2.91486,3430.7,3429.8,5.35721]
[1718730311019,2.91471,3430.9,3430.0,2.91543]
[1718730311178,2.91486,3430.7,3430.1,0.55]
[1718730311378,0.03000008,3430.6,3429.9,0.82729]
[1718730311578,2.91521,3430.3,3429.8,2.4416]
[1718730311779,2.91486,3430.7,3429.8,2.4416]
[1718730311995,2.91503,3430.5,3429.8,2.4416]
[1718730312214,2.91471,3430.9,3429.9,0.30246578]
[1718730312421,2.94485008,3430.8,3429.9,0.30246578]
[1718730312687,2.91506,3430.5,3430.0,0.27440658]
[1718730313088,2.91522,3430.3,3430.0,0.27440658]
[1718730313297,2.91511,3430.4,3429.4,2.4744]
[1718730313519,0.03000008,3430.3,3429.5,0.55]
[1718730313703,2.91511,3430.4,3429.6,1.163035]
[1718730314210,0.03000008,3430.3,3429.6,1.163035]
[1718730314578,2.9152,3430.3,3429.6,1.163035]
[1718730315210,0.03000008,3430.2,3429.6,1.163035]
[1718730315383,2.91546,3430.0,3429.4,2.4744]
[1718730315807,5.91478,3430.8,3429.1,5.9162]
[1718730315808,2.91553,3429.9,3429.1,5.9162]
[1718730316114,2.91519,3430.3,3429.2,1.1872842]
[1718730316317,2.91519,3430.3,3429.3,2.91597]
[1718730316479,2.91528,3430.2,3429.4,0.55]
[1718730316678,2.91528,3430.2,3429.5,0.70193742]
[1718730316879,2.91538,3430.1,3429.5,0.70193742]
[1718730317335,2.9152,3430.3,3429.5,0.70193742]
[1718730317336,2.91528,3430.2,3429.5,0.70193742]
[1718730317625,5.91482,3430.8,3429.8,2.91562]
[1718730317783,0.03000008,3430.7,3429.9,2.9737347]
[1718730317984,6.17,3430.9,3430.1,2.91534]
[1718730318183,0.2577,3431.5,3430.2,0.0582696]
[1718730318184,2.91453,3431.1,3430.2,0.0582696]
[1718730318426,2.91453,3431.1,3430.0,0.29737347]
[1718730318427,2.9147,3430.9,3430.0,0.29737347]
[1718730318725,2.91469,3430.9,3430.1,1.15742591]
[1718730318931,2.91469,3430.9,3430.1,0.60829856]
[1718730319788,2.91443,3431.2,3430.2,2.91527]
[1718730320020,6.17,3431.5,3430.3,1.28192666]
[1718730320206,2.91443,3431.2,3430.3,0.60829446]
[1718730320403,2.94452008,3431.1,3430.3,0.93210479]
[1718730320925,2.91529,3430.2,3429.3,2.4372]
[1718730321088,0.03000008,3430.1,3429.3,2.4372]
[1718730321622,0.03000008,3430.1,3428.9,3.0]
[1718730321623,2.91563,3429.8,3428.9,3.0]
[1718730321827,2.94571008,3429.7,3428.8,2.4372]
[1718730321990,2.94571008,3429.7,3428.8,5.35366]
[1718730322725,2.91537,3430.1,3428.9,1.17335]
[1718730322924,2.94546008,3430.0,3428.9,1.17335]
[1718730323225,2.94546008,3430.0,3429.1,2.91621]
[1718730323385,2.94546008,3430.0,3429.2,0.05831589]
[1718730324243,2.91555,3429.9,3429.2,0.05831589]
[1718730324390,2.91555,3429.9,3429.2,0.35577648]
[1718730325018,2.91577,3429.7,3429.2,0.29746059]
[1718730325221,2.91577,3429.7,3428.8,5.35359]
[1718730325535,2.9145,3431.2,3430.3,2.91519]
[1718730325689,3.25323878,3431.5,3429.8,2.3631]
[1718730325690,2.91418,3431.5,3430.5,2.91499]
[1718730325896,2.94427008,3431.4,3430.5,0.44345307]
[1718730326234,2.94428008,3431.4,3430.5,2.91502]
[1718730327437,2.94428008,3431.4,3429.8,2.3631]
[1718730327438,2.94428008,3431.4,3430.6,2.91493]
[1718730328013,2.91437,3431.3,3430.5,2.91501]
[1718730328210,2.91437,3431.3,3430.5,2.97330373]
[1718730328416,2.91446,3431.2,3430.5,0.05829373]
[1718730328731,2.94453008,3431.1,3430.2,2.91527]
[1718730328928,2.94453008,3431.1,3430.3,2.91518]
[1718730329114,2.94453008,3431.1,3430.2,3.498323]
[1718730329315,2.91463,3431.0,3430.2,3.498323]
[1718730329650,0.03000008,3430.9,3430.2,0.583063]
[1718730330133,0.03000008,3430.9,3430.2,3.498333]
[1718730330343,0.03000008,3430.9,3430.3,0.6413683]
[1718730330638,6.17177,3431.7,3429.5,2.91585]
[1718730330639,2.91455,3431.1,3429.5,2.91585]
[1718730330840,2.91486,3430.7,3429.8,2.91555]
[1718730331024,2.91468,3430.9,3429.9,3.27115061]
[1718730331228,9.17861156,3433.1,3429.9,3.27115061]
[1718730331229,2.91433,3431.4,3430.1,2.91532]
[1718730331425,0.03000008,3431.3,3430.2,0.59866623]
[1718730331627,0.03000008,3431.3,3430.3,0.05829375]
[1718730331628,2.94437008,3431.3,3430.3,0.05829375]
[1718730332004,2.94437008,3431.3,3430.4,3.46509]
[1718730332232,2.94437008,3431.3,3430.5,0.05829375]
[1718730334359,2.94437008,3431.3,3427.9,1.21999473]
[1718730334360,2.91478,3430.8,3429.7,5.91569]
[1718730334563,2.91492,3430.7,3430.1,0.55]
[1718730334729,2.91492,3430.7,3430.1,0.60829924]
[1718730334931,5.82985,3430.7,3430.1,0.60829924]
[1718730335166,2.91492,3430.7,3430.1,0.60829924]
[1718730335489,0.03000008,3430.6,3429.7,2.91563]
[1718730335654,2.94500008,3430.6,3429.8,0.03028243]
[1718730335831,2.91493,3430.7,3429.8,3.76083167]
[1718730336030,2.91494,3430.6,3429.8,3.76083167]
[1718730336247,2.91477,3430.8,3429.8,3.76083167]
[1718730336449,2.91477,3430.8,3429.8,0.84521167]
[1718730336654,2.9146,3431.0,3430.1,2.91531]
[1718730336856,2.9146,3431.0,3430.2,0.37681246]
[1718730337072,2.9147,3430.9,3430.3,0.030335]
[1718730337267,2.9147,3430.9,3430.2,0.376866]
[1718730337567,2.9147,3430.9,3430.3,0.3261841]
[1718730337867,2.91477,3430.8,3430.3,0.3261841]
[1718730338069,2.9147,3430.9,3430.2,0.05829824]
[1718730338435,2.91477,3430.8,3430.2,0.05829824]
[1718730338631,2.91494,3430.6,3430.0,0.05829921]
[1718730338853,6.17,3431.3,3429.9,0.55]
[1718730338854,2.94503008,3430.5,3429.9,0.55]
[1718730339060,2.9152,3430.3,3429.9,0.55]
[1718730339336,2.9152,3430.3,3429.1,5.9162]
[1718730339337,0.03000008,3430.2,3428.5,7.33]
[1718730339654,0.03000008,3430.2,3429.1,2.91621]
[1718730339655,2.91559,3429.9,3429.1,2.91621]
[1718730339832,2.91537,3430.1,3429.1,2.91621]
[1718730340038,2.94537008,3430.1,3429.1,2.91621]
[1718730340234,2.91551,3430.0,3429.1,2.91621]
[1718730340439,2.91563,3429.8,3429.2,0.59986735]
[1718730340671,0.03000008,3429.7,3428.7,2.2551]
[1718730340875,2.91605,3429.3,3428.7,2.2551]
[1718730341074,2.91605,3429.3,3428.4,0.4571013]
[1718730341242,2.91605,3429.3,3428.4,3.0]
[1718730341243,2.91613,3429.2,3428.4,3.0]
[1718730341443,2.91554,3429.9,3428.2,5.1891]
[1718730341444,2.91632,3429.0,3428.2,5.1891]
[1718730341649,2.91639,3428.9,3428.2,6.291434]
[1718730341984,2.91596,3429.4,3428.2,9.208404]
[1718730342192,2.91617,3429.2,3428.3,2.91689]
[1718730342493,2.91623,3429.1,3428.4,1.2125374]
[1718730342841,2.91593,3429.5,3428.2,6.291434]
[1718730342842,2.91647,3428.8,3428.2,2.88]
[1718730343100,2.91646,3428.9,3427.9,2.91717]
[1718730343237,2.94646008,3428.9,3428.0,2.91713]
[1718730343458,2.94646008,3428.9,3427.8,2.91731]
[1718730343459,2.91656,3428.7,3427.8,2.91731]
[1718730343745,2.91647,3428.8,3428.0,2.91714]
[1718730344288,2.91647,3428.8,3428.1,0.55]
[1718730345145,3.91117804,3429.6,3428.1,0.55]
[1718730345351,2.91658,3428.7,3427.7,0.45717613]
[1718730345541,2.91658,3428.7,3427.8,3.55470761]
[1718730346441,6.17,3429.3,3427.8,0.63746761]
[1718730346691,0.03000008,3429.2,3428.2,2.9169]
[1718730346981,2.91638,3428.9,3427.9,2.91722]
[1718730347194,2.94648008,3428.8,3428.0,1.133454]
[1718730347348,2.94648008,3428.8,3427.7,3.0]
[1718730347544,0.03000008,3428.8,3427.4,2.9174]
[1718730347782,2.94650008,3428.8,3427.5,0.29174]
[1718730348083,2.91664,3428.6,3427.5,0.29174]
[1718730348265,2.91647,3428.8,3427.5,3.2093]
[1718730348442,2.91663,3428.7,3427.5,0.29174]
[1718730348647,2.91648,3428.8,3427.8,2.91731]
[1718730349079,2.91648,3428.8,3427.9,3.46722]
[1718730349314,2.94656008,3428.7,3427.9,0.55]
[1718730349445,2.91623,3429.1,3428.2,2.91692]
[1718730349785,0.03000008,3429.0,3428.1,2.91699]
[1718730350004,2.91624,3429.1,3428.2,3.4669]
[1718730350304,2.91624,3429.1,3427.7,0.3766994]
[1718730350305,2.91689,3428.4,3427.4,5.28528]
[1718730350442,2.91676,3428.5,3427.4,2.3677]
[1718730350443,2.91706,3428.2,3427.4,2.3677]
[1718730350775,2.91697,3428.3,3427.5,0.820302]
[1718730350995,2.91713,3428.1,3427.1,5.91791]
[1718730351166,0.03000008,3428.0,3427.2,0.591805]
[1718730351363,2.91731,3427.9,3427.2,0.591805]
[1718730351568,2.91731,3427.9,3426.9,2.2697]
[1718730351569,2.91749,3427.6,3426.9,2.2697]
[1718730351897,2.91731,3427.9,3426.6,2.96914874]
[1718730351898,2.94758008,3427.5,3426.6,2.91833]
[1718730352181,2.91767,3427.4,3426.7,0.816361]
[1718730352390,0.03000008,3427.5,3426.7,0.816361]
[1718730352391,2.91759,3427.5,3426.7,0.816361]
[1718730352689,2.91759,3427.5,3426.4,2.3268]
[1718730352690,0.03000008,3427.4,3426.4,2.3268]
[1718730352897,2.94766008,3427.4,3426.3,2.91855]
[1718730353100,2.91783,3427.2,3426.1,2.9187]
[1718730353268,0.03000008,3427.1,3426.1,2.9187]
[1718730353671,2.91818,3426.8,3425.9,5.19613]
[1718730353864,2.91809,3426.9,3426.0,2.9188]
[1718730353865,0.03000008,3426.7,3426.0,2.9188]
[1718730354365,6.17,3427.3,3426.4,2.91849]
[1718730354567,0.03000008,3427.2,3426.4,2.91849]
[1718730354786,2.94783008,3427.2,3426.3,2.91858]
[1718730355388,2.91793,3427.1,3426.3,2.91858]
[1718730355804,0.03000008,3427.0,3426.0,0.51961]
[1718730356042,2.91817,3426.8,3425.9,2.2772]
[1718730356168,2.91793,3427.1,3426.1,0.05819418]
[1718730356390,0.03000008,3427.0,3426.2,2.91861]
[1718730356870,2.94802008,3427.0,3425.9,5.19606]
[1718730357072,2.91827,3426.7,3425.6,2.91916]
[1718730357275,2.91827,3426.7,3425.5,5.79927]
[1718730357276,2.91852,3426.4,3425.5,5.79927]
[1718730357473,0.03000008,3426.3,3425.6,5.91918]
[1718730357689,0.03000008,3426.4,3425.7,1.171845]
[1718730357880,2.91827,3426.7,3425.8,0.02063538]
[1718730358089,2.91817,3426.8,3425.9,2.91892]
[1718730358286,0.03000008,3426.7,3426.0,2.91884]
[1718730358488,6.17,3427.3,3426.2,2.91863]
[1718730358692,5.9175,3427.6,3426.3,2.91857]
[1718730358693,0.03000008,3427.2,3426.3,2.91857]
[1718730358880,5.9175,3427.6,3426.0,0.7720871]
[1718730358881,2.91801,3427.0,3426.2,2.3873]
[1718730359206,2.91759,3427.5,3426.6,2.91831]
[1718730359406,0.03000008,3427.4,3426.6,2.91833]
[1718730359613,2.94767008,3427.4,3426.6,2.91833]
[1718730359921,0.2577,3427.7,3426.3,3.15724]
[1718730359922,0.2577,3427.7,3426.8,2.9181]
[1718730360221,2.94749008,3427.6,3426.4,2.91842]
[1718730360426,2.91766,3427.4,3426.5,0.55]
[1718730360768,2.91749,3427.6,3426.5,0.55]
[1718730360769,2.91791,3427.2,3426.5,0.55]
[1718730360966,2.91817,3426.8,3426.2,2.3873]
[1718730361284,2.91793,3427.1,3426.2,2.91861]
[1718730361473,0.03000008,3427.0,3426.3,0.883737]
[1718730361667,2.91818,3426.8,3425.9,3.63009604]
[1718730361885,6.17,3427.4,3426.0,3.46884]
[1718730362086,3.03000008,3427.3,3426.0,0.55]
[1718730362292,2.91807,3427.0,3426.1,2.91869]
[1718730362490,2.91792,3427.1,3426.2,0.55]
[1718730362491,0.03000008,3426.9,3426.2,0.55]
[1718730362709,9.08774,3427.4,3426.3,2.91857]
[1718730362880,2.91784,3427.2,3426.4,2.91849]
[1718730363091,0.03000008,3427.1,3426.4,2.91849]
[1718730363312,6.17,3427.4,3426.7,2.91822]
[1718730363614,6.17,3427.4,3426.3,2.4431]
[1718730363615,6.17,3428.1,3427.3,2.91774]
[1718730363771,3.17429,3428.7,3426.5,5.69235]
[1718730363772,0.2577,3428.7,3427.4,0.291774]
[1718730363981,6.17,3428.8,3427.9,2.91723]
[1718730363982,0.03000008,3428.6,3427.9,2.91723]
[1718730364334,15.55382,3429.3,3428.0,0.05833808]
[1718730364335,6.4277,3429.3,3428.0,0.05833808]
[1718730364625,6.4277,3429.3,3427.6,6.56400899]
[1718730364626,0.03000008,3429.2,3427.6,6.56400899]
[1718730364773,0.03000008,3429.2,3428.5,2.91666]
[1718730364972,3.28902212,3429.8,3428.8,2.91639]
[1718730365168,2.91597,3429.4,3428.5,2.91671]
[1718730365404,2.91629,3429.1,3428.2,2.91697]
[1718730365607,3.0,3429.7,3428.5,2.91664]
[1718730365823,0.03000008,3429.6,3428.9,2.91637]
[1718730366123,2.94582008,3429.6,3428.7,2.91654]
[1718730366284,2.94579008,3429.6,3428.5,2.4682]
[1718730366486,2.91613,3429.2,3428.5,2.4682]
[1718730366690,2.94579008,3429.6,3427.8,2.91729]
[1718730366691,2.91647,3428.8,3427.8,5.38549]
[1718730366893,2.94663008,3428.7,3427.6,2.91741]
[1718730367132,0.03000008,3428.7,3427.5,2.91756]
[1718730367289,2.91689,3428.3,3427.5,2.91756]
[1718730367616,0.03000008,3428.2,3427.3,2.4682]
[1718730367784,2.94704008,3428.2,3427.3,5.38592]
[1718730367985,2.94704008,3428.2,3427.3,6.504303]
[1718730368404,2.91716,3428.0,3427.3,2.4682]
[1718730368604,2.94704008,3428.2,3427.1,5.79791]
[1718730368605,0.03000008,3427.9,3427.2,2.91781]
[1718730369389,0.03000008,3427.9,3426.8,2.4557]
[1718730369620,0.03000008,3427.9,3426.1,5.69272]
[1718730369621,2.94724008,3427.9,3426.3,2.4306]
[1718730369798,2.91734,3427.8,3426.9,2.91801]
[1718730370115,0.03000008,3427.9,3426.6,2.91833]
[1718730370116,2.91749,3427.6,3426.6,2.91833]
[1718730370314,2.94758008,3427.5,3426.6,2.91833]
[1718730371007,0.03000008,3427.5,3426.7,2.91822]
[1718730371208,0.03000008,3427.5,3426.8,2.91809]
[1718730371519,3.03000008,3427.8,3427.0,2.91792]
[1718730371724,0.03000008,3427.7,3427.0,2.91792]
[1718730371901,2.94748008,3427.7,3426.5,2.91842]
[1718730372217,2.91792,3427.1,3426.2,2.91867]
[1718730372425,0.03000008,3427.0,3426.2,2.91867]
[1718730372924,0.03000008,3427.0,3426.3,2.91859]
[1718730373227,0.03000008,3427.0,3426.1,2.91876]
[1718730373398,2.918,3427.0,3426.1,3.730255]
[1718730373728,0.03000008,3426.9,3426.1,0.811495]
[1718730374023,0.03000008,3426.9,3425.9,2.91893]
[1718730374225,0.03000008,3426.9,3426.0,2.91877]
[1718730374424,0.03000008,3426.9,3426.1,2.91873]
[1718730374719,2.91826,3426.7,3425.8,8.11518]
[1718730374888,2.91794,3427.1,3426.2,2.91864]
[1718730375092,0.03000008,3427.0,3426.2,2.91864]
[1718730375296,2.91808,3426.9,3426.1,2.91875]
[1718730375497,0.03000008,3426.8,3426.1,2.91875]
[1718730375822,0.03000008,3426.8,3426.4,2.9185]
[1718730375995,2.91783,3427.2,3426.1,0.811487]
[1718730375996,3.03000008,3427.1,3426.3,2.91858]
[1718730376187,2.91803,3427.0,3426.2,2.91867]
[1718730376393,0.03000008,3426.9,3426.2,3.502422]
[1718730376622,0.03000008,3426.9,3426.2,2.91867]
[1718730376789,0.03000008,3426.9,3426.3,2.91859]
[1718730376992,2.91837,3426.6,3425.6,5.91916]
[1718730377188,2.94846008,3426.5,3425.4,2.91934]
[1718730377391,2.91867,3426.3,3425.4,2.91934]
[1718730377593,0.03000008,3426.2,3425.4,2.91934]
[1718730377792,0.03000008,3426.2,3425.3,5.40184]
[1718730377793,2.94876008,3426.2,3425.3,2.4824]
[1718730378101,2.91885,3426.1,3425.3,2.4824]
[1718730378318,2.91937,3425.4,3424.8,2.88]
[1718730378647,0.03000008,3426.0,3424.5,2.92005]
[1718730378648,2.91902,3425.9,3424.5,2.92005]
[1718730378799,2.91919,3425.6,3424.6,0.292005]
[1718730379000,2.94929008,3425.5,3424.6,2.92003]
[1718730379337,2.94929008,3425.5,3424.7,2.91996]
[1718730379338,0.03000008,3425.5,3424.7,2.91996]
[1718730379639,6.17,3426.1,3425.3,2.91944]
[1718730379933,0.03000008,3426.0,3425.1,2.3071]
[1718730380147,2.9187,3426.2,3425.2,0.02665251]
[1718730380314,2.94880008,3426.1,3425.3,0.23337525]